[Event "17th Memorial Lezcano Montalvo 2025"]
[Site "Gran Canaria"]
[Date "2025.04.19"]
[Round "8.1"]
[White "Fiorito, Joaquin"]
[Black "Kaczur, Florian"]
[Result "1/2-1/2"]
[Annotator "RC"]
[ECO "A32"]
[WhiteElo "2402"]
[BlackElo "2495"]
[PlyCount "128"]
[EventDate "2025.04.13"]
[EventType "swiss"]
[EventCountry "ESP"]
[SourceTitle "playchess.com"]
[Source "ChessBase"]
[SourceQuality "1"]
[TimeControl "5400+30"]

1. d4 {[%emt 0:00:01]} Nf6 {[%emt 0:00:07]} 2. c4 {[%emt 0:00:06]} e6 {[%emt 0:00:24]} 3. Nf3 {[%emt 0:00:15]} Bb4+ {[%emt 0:00:53]} 4. Bd2 {[%emt 0:00:06]} Be7 {[%emt 0:01:24]} 5. g3 {[%emt 0:00:30]} c5 {[%emt 0:02:25]} 6. Bg2 {[%emt 0:05:33]} cxd4 {[%emt 0:04:45]} 7. Nxd4 {[%emt 0:00:23]} Nc6 {[%emt 0:03:11]} 8. Bc3 {[%emt 0:19:21]} O-O {[%emt 0:08:44]} 9. O-O {[%emt 0:03:15]} d5 {[%emt 0:02:21]} 10. cxd5 {[%emt 0:05:31]} Nxd5 {[%emt 0:12:54]} 11. Nxc6 {[%emt 0:02:28]} bxc6 {[%emt 0:00:04]} 12. e4 {[%emt 0:07:28]} Nxc3 {[%emt 0:06:39]} 13. Nxc3 {[%emt 0:00:29]} Ba6 {[%emt 0:04:37]} 14. Qxd8 {[%emt 0:03:09]} Rfxd8 {[%emt 0:03:54]} 15. Rfd1 {[%emt 0:00:38]} Rab8 {[%emt 0:03:27]} 16. Rxd8+ {[%emt 0:04:48]} Bxd8 {[%emt 0:00:12]} 17. b3 {[%emt 0:02:05]} Bf6 {[%emt 0:02:14]} 18. Rc1 {[%emt 0:00:04]} Rd8 {[%emt 0:02:54]} 19. Bf1 {[%emt 0:07:27]} Bxf1 {[%emt 0:02:59]} 20. Kxf1 {[%emt 0:00:05]} Rd2 {[%emt 0:01:27]} 21. a4 {[%emt 0:04:25]} g5 {[%emt 0:04:41]} 22. Ne2 {[%emt 0:04:40]} Rb2 {[%emt 0:00:45]} 23. Rxc6 {[%emt 0:00:43]} Rxb3 {[%emt 0:00:06]} 24. Ra6 {[%emt 0:11:11]} Rb7 {[%emt 0:05:31]} 25. f4 {[%emt 0:01:29]} Kg7 {[%emt 0:01:59]} 26. e5 {[%emt 0:01:05]} Bd8 {[%emt 0:02:59]} 27. Nc3 {[%emt 0:05:07]} gxf4 {[%emt 0:03:02]} 28. gxf4 {[%emt 0:00:05]} Rb3 {[%emt 0:07:07]} 29. Nb5 {[%emt 0:01:09]} Bb6 {[%emt 0:00:06]} 30. Kg2 {[%emt 0:00:51]} Kg6 {[%emt 0:00:43]} 31. Nd6 {[%emt 0:04:07]} Ra3 {[%emt 0:03:01]} 32. f5+ {[%emt 0:01:27]} Kg5 {[%emt 0:03:23]} 33. fxe6 {[%emt 0:00:12]} fxe6 {[%emt 0:00:05]} 34. Nc4 {[%emt 0:00:08]} Ra2+ {[%emt 0:00:27]} 35. Kf3 {[%emt 0:00:29]} Kf5 {[%emt 0:01:39]} 36. Nxb6 {[%emt 0:01:33]} Ra3+ {[%emt 0:00:08]} 37. Kg2 {[%emt 0:01:01]} axb6 {[%emt 0:00:04]} 38. Rxb6 {[%emt 0:00:03]} Rxa4 {[%emt 0:00:06]} 39. Rb7 {[%emt 0:00:58]} Rh4 {[%emt 0:00:09]} 40. Kg3 {[%emt 0:00:06]} Rh6 {[%emt 0:00:43]} 41. h4 {[%emt 0:00:13]} Rg6+ {[%emt 0:00:56]} 42. Kf3 {[%emt 0:00:05]} h6 {[%emt 0:00:29]} 43. Rh7 {[%emt 0:01:24]} Kxe5 {[%emt 0:00:09]} 44. h5 {[%emt 0:00:05]} Rf6+ {[%emt 0:00:05]} 45. Kg4 {[%emt 0:00:46]} Kd5 {[%emt 0:03:10]} 46. Rg7 {[%emt 0:00:47]} e5 {[%emt 0:00:06]} 47. Ra7 {[%emt 0:01:27]} e4 {[%emt 0:04:38]} 48. Ra5+ {[%emt 0:00:12]} Kd4 {[%emt 0:00:05]} 49. Ra4+ {[%emt 0:00:50]} Kd3 {[%emt 0:00:04]} 50. Ra3+ {[%emt 0:00:16]} Kd2 {[%emt 0:00:14]} 51. Ra2+ {[%emt 0:00:06]} Kc3 {[%emt 0:00:19]} 52. Ra3+ {[%emt 0:00:08]} Kd2 {[%emt 0:00:06]} 53. Ra2+ {[%emt 0:00:03]} Ke1 {[%emt 0:00:34]} 54. Ra1+ {[%emt 0:00:07]} Ke2 {[%emt 0:00:09]} 55. Ra2+ {[%emt 0:00:03]} Kf1 {[%emt 0:00:09]} 56. Ra1+ {[%emt 0:00:03]} Kf2 {[%emt 0:01:48]} 57. Ra2+ {[%emt 0:00:03]} Ke3 {[%emt 0:00:31]} 58. Ra3+ {[%emt 0:00:04]} Kd4 {[%emt 0:00:38]} 59. Ra4+ {[%emt 0:00:04]} Kd5 {[%emt 0:00:33]} 60. Ra5+ {[%emt 0:00:03]} Ke6 {[%emt 0:00:12]} 61. Ra6+ {[%emt 0:00:08]} Kf7 {[%emt 0:00:05]} 62. Rxf6+ {[%emt 0:00:12]} Kxf6 {[%emt 0:00:08]} 63. Kf4 {[%emt 0:00:02]} e3 {[%emt 0:00:06]} 64. Kxe3 {[%emt 0:00:03]} Ke5 {[%emt 0:04:57]} 1/2-1/2

[Event "17th Memorial Lezcano Montalvo 2025"]
[Site "Gran Canaria"]
[Date "2025.04.19"]
[Round "8.2"]
[White "Larino Nieto, David"]
[Black "Pap, Misa"]
[Result "1-0"]
[Annotator "RC"]
[ECO "A38"]
[WhiteElo "2448"]
[BlackElo "2444"]
[PlyCount "121"]
[EventDate "2025.04.13"]
[EventType "swiss"]
[EventCountry "ESP"]
[SourceTitle "playchess.com"]
[Source "ChessBase"]
[SourceQuality "1"]
[TimeControl "5400+30"]

1. b3 {[%emt 0:04:52]} g6 {[%emt 0:00:57]} 2. Bb2 {[%emt 0:00:17]} Nf6 {[%emt 0:00:05]} 3. c4 {[%emt 0:00:42]} Bg7 {[%emt 0:01:26]} 4. Nf3 {[%emt 0:00:20]} c5 {[%emt 0:00:41]} 5. g3 {[%emt 0:00:23]} d6 {[%emt 0:00:18]} 6. Bg2 {[%emt 0:00:12]} e5 {[%emt 0:00:42]} 7. d3 {[%emt 0:00:02]} Nc6 {[%emt 0:01:58]} 8. O-O {[%emt 0:00:40]} O-O {[%emt 0:00:05]} 9. Nc3 {[%emt 0:00:28]} Re8 {[%emt 0:10:47]} 10. h3 {[%emt 0:09:23]} Rb8 {[%emt 0:02:19]} 11. e3 {[%emt 0:06:21]} h6 {[%emt 0:04:45]} 12. Nd2 {[%emt 0:05:52]} a6 {[%emt 0:13:55]} 13. Nd5 {[%emt 0:03:26]} Be6 {[%emt 0:07:52]} 14. a3 {[%emt 0:03:15]} Ne7 {[%emt 0:01:02]} 15. e4 {[%emt 0:14:17]} Nc6 {[%emt 0:04:04]} 16. a4 {[%emt 0:02:43]} h5 {[%emt 0:05:59]} 17. Nf3 {[%emt 0:01:03]} Nd4 {[%emt 0:00:45]} 18. Nxd4 {[%emt 0:00:55]} cxd4 {[%emt 0:01:27]} 19. a5 {[%emt 0:08:16]} Nxd5 {[%emt 0:04:50]} 20. exd5 {[%emt 0:01:11]} Bf5 {[%emt 0:00:46]} 21. b4 {[%emt 0:02:53]} Rc8 {[%emt 0:04:50]} 22. Re1 {[%emt 0:01:42]} h4 {[%emt 0:04:52]} 23. g4 {[%emt 0:01:50]} Bd7 {[%emt 0:00:01]} 24. Bc1 {[%emt 0:00:28]} f5 {[%emt 0:04:50]} 25. gxf5 {[%emt 0:00:01]} Bxf5 {[%emt 0:00:05]} 26. Be4 {[%emt 0:00:20]} Qd7 {[%emt 0:02:21]} 27. Qf3 {[%emt 0:14:12]} Bxh3 {[%emt 0:05:09]} 28. Bxg6 {[%emt 0:00:36]} Bg4 {[%emt 0:03:07]} 29. Qe4 {[%emt 0:04:20]} Rf8 {[%emt 0:00:35]} 30. f4 {[%emt 0:00:17]} Bh3 {[%emt 0:08:24]} 31. Kh2 {[%emt 0:00:32]} Bf5 {[%emt 0:01:09]} 32. Bxf5 {[%emt 0:00:42]} Qxf5 {[%emt 0:00:01]} 33. Ra2 {[%emt 0:05:08]} exf4 {[%emt 0:00:16]} 34. Qf3 {[%emt 0:00:50]} Rce8 {[%emt 0:01:13]} 35. Rg1 {[%emt 0:00:19]} h3 {[%emt 0:00:39]} 36. Kh1 {[%emt 0:02:31]} Rf6 {[%emt 0:00:52]} 37. Rh2 {[%emt 0:02:31]} Rg6 {[%emt 0:01:18]} 38. Rf1 {[%emt 0:01:00]} Rg3 {[%emt 0:03:37]} 39. Qxf4 {[%emt 0:00:10]} Qxf4 {[%emt 0:00:51]} 40. Bxf4 {[%emt 0:00:03]} Rxd3 {[%emt 0:00:18]} 41. Bxd6 {[%emt 0:00:04]} Rf3 {[%emt 0:00:54]} 42. Rd1 {[%emt 0:01:16]} d3 {[%emt 0:00:31]} 43. Rhd2 {[%emt 0:00:19]} Ree3 {[%emt 0:00:40]} 44. Bc5 {[%emt 0:00:03]} Re2 {[%emt 0:00:20]} 45. Rxd3 {[%emt 0:00:13]} Rf4 {[%emt 0:00:45]} 46. d6 {[%emt 0:00:30]} h2 {[%emt 0:00:31]} 47. d7 {[%emt 0:00:32]} Bf6 {[%emt 0:00:10]} 48. d8=Q+ {[%emt 0:00:14]} Bxd8 {[%emt 0:00:04]} 49. Rxd8+ {[%emt 0:00:06]} Kg7 {[%emt 0:00:03]} 50. R8d2 {[%emt 0:00:43]} Rxd2 {[%emt 0:00:21]} 51. Rxd2 {[%emt 0:00:04]} Rxc4 {[%emt 0:00:03]} 52. Kxh2 {[%emt 0:00:26]} Kf6 {[%emt 0:00:06]} 53. Rd7 {[%emt 0:00:39]} Ke5 {[%emt 0:00:04]} 54. Rxb7 {[%emt 0:00:16]} Kf4 {[%emt 0:00:04]} 55. Rf7+ {[%emt 0:00:30]} Kg4 {[%emt 0:00:04]} 56. Kg2 {[%emt 0:00:28]} Rc2+ {[%emt 0:00:04]} 57. Kf1 {[%emt 0:00:07]} Rc1+ {[%emt 0:00:03]} 58. Ke2 {[%emt 0:00:04]} Rc2+ {[%emt 0:00:04]} 59. Kd3 {[%emt 0:00:06]} Rc1 {[%emt 0:00:03]} 60. Ke4 {[%emt 0:00:13]} Re1+ {[%emt 0:00:05]} 61. Kd5 {[%emt 0:00:05]} 1-0

[Event "17th Memorial Lezcano Montalvo 2025"]
[Site "Gran Canaria"]
[Date "2025.04.19"]
[Round "8.3"]
[White "Barski, Radoslaw"]
[Black "Korneev, Oleg"]
[Result "0-1"]
[Annotator "RC"]
[ECO "C54"]
[WhiteElo "2385"]
[BlackElo "2466"]
[PlyCount "86"]
[EventDate "2025.04.13"]
[EventType "swiss"]
[EventCountry "ESP"]
[SourceTitle "playchess.com"]
[Source "ChessBase"]
[SourceQuality "1"]
[TimeControl "5400+30"]

1. e4 {[%emt 0:00:15]} e5 {[%emt 0:04:00]} 2. Nf3 {[%emt 0:00:31]} Nc6 {[%emt 0:02:59]} 3. Bc4 {[%emt 0:00:26]} Bc5 {[%emt 0:00:04]} 4. c3 {[%emt 0:00:08]} Nf6 {[%emt 0:00:02]} 5. d3 {[%emt 0:00:12]} a6 {[%emt 0:00:07]} 6. O-O {[%emt 0:00:25]} Ba7 {[%emt 0:00:03]} 7. a4 {[%emt 0:03:06]} h6 {[%emt 0:00:14]} 8. Re1 {[%emt 0:01:25]} O-O {[%emt 0:00:13]} 9. h3 {[%emt 0:00:13]} d6 {[%emt 0:00:06]} 10. Nbd2 {[%emt 0:00:06]} Ne7 {[%emt 0:09:37]} 11. Nf1 {[%emt 0:16:33]} Ng6 {[%emt 0:00:14]} 12. Ng3 {[%emt 0:00:06]} c6 {[%emt 0:04:09]} 13. Bb3 {[%emt 0:02:22]} d5 {[%emt 0:03:46]} 14. exd5 {[%emt 0:25:06]} Nxd5 {[%emt 0:00:36]} 15. d4 {[%emt 0:00:13]} exd4 {[%emt 0:00:07]} 16. Nxd4 {[%emt 0:00:05]} Be6 {[%emt 1:12:13]} 17. Be3 {[%emt 0:17:03]} Nxe3 {[%emt 0:00:00]} 18. Rxe3 {[%emt 0:01:05]} Bxb3 {[%emt 0:00:00]} 19. Qxb3 {[%emt 0:00:06]} c5 {[%emt 0:00:00]} 20. Ndf5 {[%emt 0:00:06]} c4 {[%emt 0:00:00]} 21. Qxb7 {[%emt 0:00:09]} Bxe3 {[%emt 0:00:00]} 22. Nxe3 {[%emt 0:00:06]} Qb8 {[%emt 0:00:00]} 23. Qxb8 {[%emt 0:06:24]} Raxb8 {[%emt 0:00:00]} 24. Ra2 {[%emt 0:00:18]} Rfc8 {[%emt 0:00:00]} 25. Ngf5 {[%emt 0:02:32]} Rc6 {[%emt 0:00:00]} 26. a5 {[%emt 0:03:49]} Kf8 {[%emt 0:00:00]} 27. Nd4 {[%emt 0:01:07]} Rc5 {[%emt 0:00:00]} 28. Nec2 {[%emt 0:05:34]} Nf4 {[%emt 0:00:00]} 29. Nb4 {[%emt 0:01:13]} Ra8 {[%emt 0:00:00]} 30. Kf1 {[%emt 0:01:38]} Nd5 {[%emt 0:00:00]} 31. Nbc2 {[%emt 0:00:25]} Re8 {[%emt 0:00:00]} 32. g3 {[%emt 0:02:32]} g6 {[%emt 0:00:00]} 33. Ra4 {[%emt 0:00:27]} Rb8 {[%emt 0:00:00]} 34. Ra2 {[%emt 0:00:05]} Rc7 {[%emt 0:00:00]} 35. Na3 {[%emt 0:03:10]} Ke7 {[%emt 0:00:00]} 36. Ke2 {[%emt 0:00:20]} Kd6 {[%emt 0:00:00]} 37. Kd2 {[%emt 0:00:35]} Kc5 {[%emt 0:00:00]} 38. Nac2 {[%emt 0:01:39]} Rcb7 {[%emt 0:00:00]} 39. Kc1 {[%emt 0:00:09]} h5 {[%emt 0:00:00]} 40. Nf3 {[%emt 0:00:48]} Re8 {[%emt 0:00:00]} 41. Nd2 {[%emt 0:01:14]} Re2 {[%emt 0:03:07]} 42. Na3 {[%emt 0:02:15]} Rbe7 {[%emt 0:02:51]} 43. Ndxc4 {[%emt 0:04:10]} Nxc3 {[%emt 0:00:32]} 0-1

[Event "17th Memorial Lezcano Montalvo 2025"]
[Site "Gran Canaria"]
[Date "2025.04.19"]
[Round "8.4"]
[White "Petriashvili, Nikoloz"]
[Black "Castellanos Gomez, Alejandro"]
[Result "1-0"]
[Annotator "RC"]
[ECO "C00"]
[WhiteElo "2459"]
[BlackElo "2267"]
[PlyCount "91"]
[EventDate "2025.04.13"]
[EventType "swiss"]
[EventCountry "ESP"]
[SourceTitle "playchess.com"]
[Source "ChessBase"]
[SourceQuality "1"]
[TimeControl "5400+30"]

1. e4 {[%emt 0:02:05]} e6 {[%emt 0:00:30]} 2. Qe2 {[%emt 0:01:11]} g6 {[%emt 0:01:02]} 3. d4 {[%emt 0:00:51]} Bg7 {[%emt 0:00:16]} 4. Nf3 {[%emt 0:00:19]} Ne7 {[%emt 0:00:17]} 5. g3 {[%emt 0:01:00]} O-O {[%emt 0:00:18]} 6. Bg2 {[%emt 0:00:07]} d5 {[%emt 0:02:49]} 7. O-O {[%emt 0:00:15]} b6 {[%emt 0:02:55]} 8. Rd1 {[%emt 0:00:17]} Ba6 {[%emt 0:03:15]} 9. Qe1 {[%emt 0:00:13]} Nd7 {[%emt 0:03:38]} 10. Nc3 {[%emt 0:00:56]} Re8 {[%emt 0:13:23]} 11. Bf4 {[%emt 0:00:52]} Nf6 {[%emt 0:04:17]} 12. a4 {[%emt 0:02:56]} Bb7 {[%emt 0:02:31]} 13. Nd2 {[%emt 0:07:38]} a6 {[%emt 0:04:14]} 14. a5 {[%emt 0:00:51]} Nc6 {[%emt 0:01:49]} 15. axb6 {[%emt 0:01:50]} cxb6 {[%emt 0:00:09]} 16. e5 {[%emt 0:04:08]} Nh5 {[%emt 0:06:15]} 17. Be3 {[%emt 0:00:26]} Bf8 {[%emt 0:00:41]} 18. Ne2 {[%emt 0:04:36]} Ng7 {[%emt 0:07:16]} 19. Nf3 {[%emt 0:00:29]} Rc8 {[%emt 0:01:18]} 20. Bg5 {[%emt 0:00:42]} Qd7 {[%emt 0:04:58]} 21. Qd2 {[%emt 0:01:02]} Na5 {[%emt 0:00:57]} 22. Nf4 {[%emt 0:03:05]} Qc6 {[%emt 0:02:46]} 23. Ne1 {[%emt 0:01:41]} Nf5 {[%emt 0:05:39]} 24. g4 {[%emt 0:00:50]} Nc4 {[%emt 0:02:00]} 25. Qc1 {[%emt 0:02:34]} Nxd4 {[%emt 0:02:51]} 26. Rxd4 {[%emt 0:00:05]} Nxe5 {[%emt 0:00:44]} 27. Nfd3 {[%emt 0:02:00]} Nc4 {[%emt 0:01:11]} 28. Bh6 {[%emt 0:01:42]} Bd6 {[%emt 0:01:21]} 29. b3 {[%emt 0:02:39]} Na5 {[%emt 0:00:10]} 30. Qg5 {[%emt 0:01:41]} Be7 {[%emt 0:01:21]} 31. Qe5 {[%emt 0:00:06]} f6 {[%emt 0:00:39]} 32. Qe3 {[%emt 0:00:41]} Qd7 {[%emt 0:00:43]} 33. Rda4 {[%emt 0:03:37]} Bc6 {[%emt 0:01:43]} 34. Qxb6 {[%emt 0:02:06]} Bd8 {[%emt 0:00:31]} 35. Qb4 {[%emt 0:01:28]} Bxa4 {[%emt 0:00:53]} 36. Qxa4 {[%emt 0:00:19]} Qf7 {[%emt 0:02:54]} 37. Bd2 {[%emt 0:00:45]} Nc6 {[%emt 0:00:38]} 38. Qxa6 {[%emt 0:00:45]} Bc7 {[%emt 0:00:09]} 39. Ra4 {[%emt 0:01:31]} Ne5 {[%emt 0:01:09]} 40. g5 {[%emt 0:02:31]} fxg5 {[%emt 0:01:05]} 41. Bxg5 {[%emt 0:00:35]} Qf5 {[%emt 0:03:02]} 42. Bf4 {[%emt 0:02:43]} Rf8 {[%emt 0:01:09]} 43. Bg3 {[%emt 0:01:47]} Nxd3 {[%emt 0:00:24]} 44. Nxd3 {[%emt 0:00:06]} Bxg3 {[%emt 0:00:15]} 45. hxg3 {[%emt 0:00:05]} Rxc2 {[%emt 0:00:16]} 46. Rf4 {[%emt 0:00:05]} 1-0

[Event "17th Memorial Lezcano Montalvo 2025"]
[Site "Gran Canaria"]
[Date "2025.04.19"]
[Round "8.5"]
[White "Alsina Leal, Daniel"]
[Black "Strikovic, Aleksa"]
[Result "1/2-1/2"]
[Annotator "RC"]
[ECO "A21"]
[WhiteElo "2496"]
[BlackElo "2367"]
[PlyCount "21"]
[EventDate "2025.04.13"]
[EventType "swiss"]
[EventCountry "ESP"]
[SourceTitle "playchess.com"]
[Source "ChessBase"]
[SourceQuality "1"]
[TimeControl "5400+30"]

1. c4 {[%emt 0:02:03]} e5 {[%emt 0:00:18]} 2. Nc3 {[%emt 0:00:04]} Bb4 {[%emt 0:00:13]} 3. Nd5 {[%emt 0:00:04]} Be7 {[%emt 0:00:11]} 4. d4 {[%emt 0:00:04]} exd4 {[%emt 0:00:08]} 5. Qxd4 {[%emt 0:00:04]} Nf6 {[%emt 0:00:10]} 6. Nxe7 {[%emt 0:00:05]} Qxe7 {[%emt 0:00:05]} 7. Bg5 {[%emt 0:00:10]} Nc6 {[%emt 0:00:14]} 8. Qc3 {[%emt 0:00:07]} d6 {[%emt 0:00:24]} 9. Nf3 {[%emt 0:01:01]} Ne5 {[%emt 0:00:44]} 10. Nxe5 {[%emt 0:05:23]} Qxe5 {[%emt 0:00:35]} 11. Qxe5+ {[%emt 0:04:05]} 1/2-1/2

[Event "17th Memorial Lezcano Montalvo 2025"]
[Site "Gran Canaria"]
[Date "2025.04.19"]
[Round "8.6"]
[White "Gomez Ledo, Roberto Carlos"]
[Black "Narciso Dublan, Marc"]
[Result "1/2-1/2"]
[Annotator "RC"]
[ECO "C46"]
[WhiteElo "2396"]
[BlackElo "2376"]
[PlyCount "99"]
[EventDate "2025.04.13"]
[EventType "swiss"]
[EventCountry "ESP"]
[SourceTitle "playchess.com"]
[Source "ChessBase"]
[SourceQuality "1"]
[TimeControl "5400+30"]

1. e4 {[%emt 0:01:02]} e5 {[%emt 0:00:42]} 2. Nf3 {[%emt 0:00:32]} Nc6 {[%emt 0:00:09]} 3. Nc3 {[%emt 0:00:38]} Bc5 {[%emt 0:03:02]} 4. Nxe5 {[%emt 0:02:49]} Nxe5 {[%emt 0:00:07]} 5. d4 {[%emt 0:00:31]} Bd6 {[%emt 0:00:07]} 6. dxe5 {[%emt 0:00:45]} Bxe5 {[%emt 0:00:09]} 7. Bd3 {[%emt 0:01:09]} Nf6 {[%emt 0:03:27]} 8. O-O {[%emt 0:02:38]} d6 {[%emt 0:00:41]} 9. Ne2 {[%emt 0:11:21]} Nd7 {[%emt 0:01:01]} 10. f4 {[%emt 0:02:00]} Bf6 {[%emt 0:00:09]} 11. c3 {[%emt 0:01:34]} O-O {[%emt 0:02:33]} 12. Ng3 {[%emt 0:01:53]} Re8 {[%emt 0:24:19]} 13. Bc2 {[%emt 0:05:11]} Be7 {[%emt 0:09:39]} 14. Qf3 {[%emt 0:03:52]} Bf8 {[%emt 0:00:45]} 15. Be3 {[%emt 0:06:43]} c6 {[%emt 0:05:16]} 16. Rae1 {[%emt 0:03:32]} Qc7 {[%emt 0:02:14]} 17. Bd4 {[%emt 0:03:59]} c5 {[%emt 0:05:03]} 18. Bf2 {[%emt 0:04:58]} Nf6 {[%emt 0:00:44]} 19. h3 {[%emt 0:03:10]} Bd7 {[%emt 0:00:37]} 20. Kh1 {[%emt 0:12:48]} a5 {[%emt 0:01:41]} 21. a4 {[%emt 0:05:47]} b5 {[%emt 0:03:49]} 22. e5 {[%emt 0:04:01]} Bc6 {[%emt 0:00:38]} 23. Qd3 {[%emt 0:01:59]} dxe5 {[%emt 0:00:43]} 24. fxe5 {[%emt 0:05:01]} Rxe5 {[%emt 0:04:45]} 25. Rxe5 {[%emt 0:01:32]} Qxe5 {[%emt 0:00:10]} 26. axb5 {[%emt 0:00:28]} c4 {[%emt 0:02:33]} 27. Qd2 {[%emt 0:01:58]} Qxb5 {[%emt 0:03:08]} 28. Bd4 {[%emt 0:00:27]} Nh5 {[%emt 0:08:41]} 29. Nf5 {[%emt 0:00:26]} g6 {[%emt 0:02:57]} 30. Bd1 {[%emt 0:01:28]} Qxf5 {[%emt 0:00:36]} 31. Rxf5 {[%emt 0:00:04]} Ng3+ {[%emt 0:00:05]} 32. Kg1 {[%emt 0:00:04]} Nxf5 {[%emt 0:00:07]} 33. Bf2 {[%emt 0:01:37]} Re8 {[%emt 0:06:03]} 34. Qf4 {[%emt 0:01:27]} Nd6 {[%emt 0:04:10]} 35. Bf3 {[%emt 0:01:45]} Bxf3 {[%emt 0:01:07]} 36. Qxf3 {[%emt 0:01:29]} Ne4 {[%emt 0:02:29]} 37. Qe2 {[%emt 0:00:44]} Nd6 {[%emt 0:00:11]} 38. Qd1 {[%emt 0:00:15]} Ne4 {[%emt 0:00:36]} 39. Qe2 {[%emt 0:03:33]} Nd6 {[%emt 0:00:06]} 40. Qg4 {[%emt 0:02:26]} Ne4 {[%emt 0:01:10]} 41. Bd4 {[%emt 0:00:38]} Re6 {[%emt 0:02:12]} 42. Qe2 {[%emt 0:01:13]} Nxc3 {[%emt 0:00:29]} 43. Qxc4 {[%emt 0:00:24]} Ne2+ {[%emt 0:01:35]} 44. Kf2 {[%emt 0:00:25]} Nxd4 {[%emt 0:00:50]} 45. Qxd4 {[%emt 0:00:05]} h5 {[%emt 0:00:25]} 46. Qd8 {[%emt 0:00:25]} Re5 {[%emt 0:00:26]} 47. Kf1 {[%emt 0:01:11]} Rf5+ {[%emt 0:00:31]} 48. Ke2 {[%emt 0:00:09]} Rb5 {[%emt 0:00:11]} 49. b3 {[%emt 0:00:15]} Rxb3 {[%emt 0:00:39]} 50. Qxa5 {[%emt 0:00:07]} 1/2-1/2

[Event "17th Memorial Lezcano Montalvo 2025"]
[Site "Gran Canaria"]
[Date "2025.04.19"]
[Round "8.7"]
[White "Garcia Padron, Jose"]
[Black "Petriashvili, Nikoloz"]
[Result "*"]
[Annotator "RC"]
[ECO "B33"]
[WhiteElo "2355"]
[BlackElo "2459"]
[PlyCount "23"]
[EventDate "2025.04.13"]
[EventType "swiss"]
[EventCountry "ESP"]
[SourceTitle "playchess.com"]
[Source "ChessBase"]
[SourceQuality "1"]
[TimeControl "5400+30"]

1. e4 {[%emt 0:00:04]} c5 {[%emt 0:04:25]} 2. Nf3 {[%emt 0:00:08]} Nc6 {[%emt 0:00:27]} 3. d4 {[%emt 0:00:11]} cxd4 {[%emt 0:00:05]} 4. Nxd4 {[%emt 0:00:07]} Nf6 {[%emt 1:27:33]} 5. Nc3 {[%emt 0:00:10]} e5 {[%emt 0:00:16]} 6. Ndb5 {[%emt 0:00:18]} d6 {[%emt 0:00:06]} 7. Nd5 {[%emt 0:00:31]} Nxd5 {[%emt 0:00:09]} 8. exd5 {[%emt 0:00:06]} Ne7 {[%emt 1:28:58]} 9. c3 {[%emt 0:00:10]} Nf5 {[%emt 0:00:30]} 10. a4 {[%emt 0:07:24]} Be7 {[%emt 0:01:32]} 11. Bd3 {[%emt 0:01:00]} O-O {[%emt 0:00:47]} 12. O-O {[%emt 0:00:15]} *

[Event "17th Memorial Lezcano Montalvo 2025"]
[Site "Gran Canaria"]
[Date "2025.04.19"]
[Round "8.7"]
[White "Torres Rebolledo, Alvaro"]
[Black "Alsina Leal, Daniel"]
[Result "1-0"]
[Annotator "RC"]
[ECO "B33"]
[WhiteElo "2311"]
[BlackElo "2496"]
[PlyCount "109"]
[EventDate "2025.04.13"]
[EventType "swiss"]
[EventCountry "ESP"]
[SourceTitle "playchess.com"]
[Source "ChessBase"]
[SourceQuality "1"]
[TimeControl "5400+30"]

1. e4 {[%emt 0:00:04]} c5 {[%emt 0:04:25]} 2. Nf3 {[%emt 0:00:08]} Nc6 {[%emt 0:00:27]} 3. d4 {[%emt 0:00:11]} cxd4 {[%emt 0:00:05]} 4. Nxd4 {[%emt 0:00:07]} Nf6 {[%emt 0:00:04]} 5. Nc3 {[%emt 0:00:10]} e5 {[%emt 0:00:16]} 6. Ndb5 {[%emt 0:00:18]} d6 {[%emt 0:00:06]} 7. Nd5 {[%emt 0:00:31]} Nxd5 {[%emt 0:00:09]} 8. exd5 {[%emt 0:00:06]} Ne7 {[%emt 0:00:17]} 9. c3 {[%emt 0:00:10]} Nf5 {[%emt 0:00:30]} 10. a4 {[%emt 0:07:24]} Be7 {[%emt 0:01:32]} 11. Bd3 {[%emt 0:01:00]} O-O {[%emt 0:00:47]} 12. O-O {[%emt 0:00:15]} Bd7 {[%emt 0:20:53]} 13. f4 {[%emt 0:14:54]} exf4 {[%emt 0:21:45]} 14. Bxf4 {[%emt 0:07:56]} a6 {[%emt 0:02:54]} 15. Na3 {[%emt 0:02:28]} Nh4 {[%emt 0:18:02]} 16. Kh1 {[%emt 0:06:59]} Ng6 {[%emt 0:01:07]} 17. Bg3 {[%emt 0:03:15]} Qc7 {[%emt 0:13:01]} 18. Nc4 {[%emt 0:14:34]} b5 {[%emt 0:00:37]} 19. axb5 {[%emt 0:00:15]} axb5 {[%emt 0:00:21]} 20. Na3 {[%emt 0:00:45]} Qb6 {[%emt 0:10:14]} 21. Qe2 {[%emt 0:04:09]} Rae8 {[%emt 0:01:34]} 22. Bxb5 {[%emt 0:03:43]} Bh4 {[%emt 0:00:34]} 23. Qf2 {[%emt 0:01:32]} Qxf2 {[%emt 0:01:07]} 24. Bxf2 {[%emt 0:00:06]} Bxf2 {[%emt 0:00:48]} 25. Rxf2 {[%emt 0:00:57]} Re7 {[%emt 0:00:21]} 26. Bxd7 {[%emt 0:04:02]} Rxd7 {[%emt 0:00:01]} 27. Nb5 {[%emt 0:05:45]} Rb8 {[%emt 0:00:25]} 28. c4 {[%emt 0:00:40]} Ne5 {[%emt 0:01:20]} 29. b3 {[%emt 0:00:38]} Kf8 {[%emt 0:00:06]} 30. Rfa2 {[%emt 0:02:51]} Ke7 {[%emt 0:00:11]} 31. Ra7 {[%emt 0:01:01]} Rbb7 {[%emt 0:00:28]} 32. Rxb7 {[%emt 0:00:57]} Rxb7 {[%emt 0:00:01]} 33. Ra6 {[%emt 0:01:12]} Rd7 {[%emt 0:00:56]} 34. Kg1 {[%emt 0:02:01]} Nd3 {[%emt 0:00:38]} 35. Nd4 {[%emt 0:02:35]} Kf6 {[%emt 0:00:26]} 36. Nc6 {[%emt 0:01:39]} Rb7 {[%emt 0:01:29]} 37. b4 {[%emt 0:01:25]} Nxb4 {[%emt 0:00:31]} 38. Nxb4 {[%emt 0:00:05]} Rxb4 {[%emt 0:00:01]} 39. Rxd6+ {[%emt 0:00:15]} Ke7 {[%emt 0:00:31]} 40. Rc6 {[%emt 0:00:59]} Kd7 {[%emt 0:00:15]} 41. Kf2 {[%emt 0:00:50]} Rb2+ {[%emt 0:00:25]} 42. Kf3 {[%emt 0:00:38]} Rc2 {[%emt 0:00:29]} 43. h4 {[%emt 0:00:55]} h5 {[%emt 0:00:20]} 44. g3 {[%emt 0:00:15]} Rc3+ {[%emt 0:00:50]} 45. Kf4 {[%emt 0:00:20]} f6 {[%emt 0:00:52]} 46. c5 {[%emt 0:03:09]} Rd3 {[%emt 0:00:45]} 47. Ke4 {[%emt 0:00:13]} Rxg3 {[%emt 0:00:30]} 48. Ra6 {[%emt 0:00:08]} g5 {[%emt 0:00:29]} 49. Ra7+ {[%emt 0:00:21]} Kc8 {[%emt 0:00:31]} 50. d6 {[%emt 0:00:21]} Rc3 {[%emt 0:00:25]} 51. Kd5 {[%emt 0:00:12]} gxh4 {[%emt 0:00:18]} 52. c6 {[%emt 0:00:42]} Kb8 {[%emt 0:00:45]} 53. Rh7 {[%emt 0:00:28]} Re3 {[%emt 0:00:34]} 54. Rh8+ {[%emt 0:00:19]} Ka7 {[%emt 0:00:04]} 55. c7 {[%emt 0:00:21]} 1-0

[Event "17th Memorial Lezcano Montalvo 2025"]
[Site "Gran Canaria"]
[Date "2025.04.19"]
[Round "8.8"]
[White "Maerevoet, Sim"]
[Black "Fiorito, Fabian"]
[Result "*"]
[Annotator "RC"]
[ECO "A62"]
[WhiteElo "2451"]
[BlackElo "2268"]
[PlyCount "23"]
[EventDate "2025.04.13"]
[EventType "swiss"]
[EventCountry "ESP"]
[SourceTitle "playchess.com"]
[Source "ChessBase"]
[SourceQuality "1"]
[TimeControl "5400+30"]

1. d4 {[%emt 0:00:42]} g6 {[%emt 0:00:07]} 2. Nf3 {[%emt 0:00:28]} Bg7 {[%emt 0:00:17]} 3. c4 {[%emt 0:00:08]} c5 {[%emt 0:02:00]} 4. d5 {[%emt 0:00:11]} d6 {[%emt 0:00:58]} 5. g3 {[%emt 0:02:39]} Nf6 {[%emt 0:02:44]} 6. Nc3 {[%emt 0:00:30]} O-O {[%emt 0:00:22]} 7. Bg2 {[%emt 0:00:12]} e6 {[%emt 0:02:01]} 8. O-O {[%emt 0:00:29]} exd5 {[%emt 0:00:50]} 9. cxd5 {[%emt 0:00:03]} Re8 {[%emt 0:00:08]} 10. Bf4 {[%emt 0:01:59]} h6 {[%emt 0:01:04]} 11. h3 {[%emt 0:02:21]} g5 {[%emt 0:03:22]} 12. Bc1 {[%emt 0:00:48]} *